bitfinex-derivatives/quotes_ETHF0:USTF0_20251119
["timestamp","ask_amount","ask_price","bid_price","bid_amount"]
[1763587875678,3.2078,2977.4,2976.9,0.0050388]
[1763587875979,3.2078,2977.3,2976.9,0.0050388]
[1763587876376,3.2078,2977.0,2976.9,0.0050388]
[1763587876983,0.00382491,2977.4,2976.9,6.0050388]
[1763587877180,0.00382491,2977.4,2976.9,0.0050388]
[1763587877380,3.2078,2977.3,2976.9,0.0050388]
[1763587877971,0.00382491,2977.4,2976.9,0.0050388]
[1763587878173,3.2078,2978.3,2977.2,4.47299279]
[1763587878382,3.2078,2978.3,2977.4,3.2078]
[1763587878787,3.2078,2978.6,2977.8,3.2078]
[1763587879188,3.2078,2978.6,2977.9,4.36211591]
[1763587879379,3.21133213,2978.6,2977.8,3.2078]
[1763587879688,3.2078,2978.0,2977.2,5.0767]
[1763587879886,3.2078,2978.0,2977.2,8.2845]
[1763587880088,0.00353213,2978.6,2977.2,8.2845]
[1763587880089,3.21133213,2978.6,2977.9,3.65629093]
[1763587880387,3.21133213,2978.6,2978.0,4.32480429]
[1763587880583,0.00353213,2978.6,2978.4,3.65629093]
[1763587881085,1.4779,2980.0,2978.5,7.98380429]
[1763587881290,3.2078,2978.6,2978.5,3.659]
[1763587881585,3.2078,2978.9,2978.3,0.0050388]
[1763587881989,3.2078,2980.3,2978.8,3.65629093]
[1763587882287,3.2078,2979.6,2978.9,3.658]
[1763587883088,0.00404785,2979.6,2979.4,3.2078]
[1763587884484,1.4779,2980.8,2979.5,4.31526861]
[1763587884693,1.4779,2980.8,2980.0,3.2078]
[1763587885480,3.2078,2980.3,2978.8,12.8918]
[1763587885681,3.2078,2979.4,2978.8,12.8918]
[1763587885886,3.2078,2979.0,2978.9,0.00392702]
[1763587886492,4.6834,2979.0,2978.7,0.0050388]
[1763587886701,1.4756,2979.0,2978.7,0.0050388]
[1763587886994,3.2078,2978.9,2978.3,3.2078]
[1763587887187,0.0050388,2979.2,2978.6,3.2078]
[1763587887492,0.0050388,2979.2,2978.6,3.21123722]
[1763587887887,3.2078,2980.1,2979.0,4.82829093]
[1763587888085,0.00352895,2980.8,2980.0,3.2078]
[1763587888897,0.0050388,2980.7,2980.1,0.0050388]
[1763587889298,3.2078,2980.3,2979.6,3.2078]
[1763587890189,3.2078,2980.0,2979.2,3.2078]
[1763587890391,1.4756,2979.9,2979.3,0.0050388]
[1763587890895,1.4756,2979.9,2979.5,3.2078]
[1763587891095,3.2128388,2980.7,2979.5,3.2078]
[1763587891283,3.2128388,2980.7,2979.9,3.2078]
[1763587891284,3.2078,2980.6,2979.9,3.2078]
[1763587891490,3.2078,2980.6,2979.6,3.2078]
[1763587891997,3.2078,2980.1,2979.3,0.0050388]
[1763587892291,3.2078,2979.7,2978.4,3.2078]
[1763587892594,3.2078,2979.4,2978.7,3.2078]
[1763587893091,3.2078,2979.2,2978.7,3.2078]
[1763587893292,3.2078,2979.2,2978.2,3.2078]
[1763587893489,3.2128388,2979.2,2978.6,0.00847602]
[1763587893897,3.2078,2979.1,2978.6,0.00847602]
[1763587894399,1.5028,2979.0,2978.6,0.00847602]
[1763587894984,3.2078,2978.8,2978.2,3.2078]
[1763587895292,3.2078,2978.9,2978.2,3.2078]
[1763587896196,3.2078,2978.9,2978.3,0.0050388]
[1763587896494,3.2078,2978.4,2977.5,3.2078]
[1763587896695,1.5028,2979.0,2978.1,3.2078]
[1763587896997,3.2078,2978.8,2978.1,3.2078]
[1763587897493,3.21184381,2978.8,2978.2,0.0050388]
[1763587897797,3.2078,2978.5,2977.5,3.2078]
[1763587897991,1.5028,2978.1,2977.5,3.2078]
[1763587898396,3.2078,2978.5,2977.8,3.2078]
[1763587898595,0.00404381,2978.8,2977.1,3.65629093]
[1763587898596,3.21184381,2978.8,2978.1,3.2078]
[1763587898889,3.21184381,2978.8,2978.2,0.00333262]
[1763587899893,0.00404381,2978.8,2978.2,0.00333262]
[1763587900390,0.00404381,2978.8,2978.5,3.2078]
[1763587900596,0.00404381,2978.8,2978.4,0.54452]
[1763587901593,0.00404381,2978.8,2978.2,3.21113262]
[1763587902895,0.00404381,2978.8,2978.5,3.2078]
[1763587903093,0.00404381,2978.8,2978.7,0.54447]
[1763587903700,0.00404381,2978.8,2978.2,3.21113262]
[1763587904895,0.00404381,2978.8,2978.6,3.2078]
[1763587905502,0.00404381,2978.8,2978.7,0.54447]
[1763587905700,0.0050388,2979.2,2978.7,0.54447]
[1763587905999,3.2078,2979.4,2978.6,3.2078]
[1763587906394,1.5028,2979.0,2978.3,3.2078]
[1763587906590,3.2078,2979.6,2978.9,3.2078]
[1763587906795,3.21018018,2979.6,2978.9,3.2078]
[1763587906996,0.0050388,2979.5,2978.9,3.2078]
[1763587907995,0.0050388,2979.5,2979.1,3.2078]
[1763587908197,3.2128388,2979.5,2978.8,3.2078]
[1763587908403,0.0050388,2979.5,2979.1,3.2078]
[1763587908702,0.0050388,2979.5,2979.4,3.2078]
[1763587908898,1.4756,2980.8,2979.4,3.2078]
[1763587909096,3.2078,2980.9,2980.1,3.2078]
[1763587909295,3.2078,2980.9,2980.4,3.2078]
[1763587910001,3.21701886,2980.9,2980.4,3.21562282]
[1763587910605,0.00921886,2980.9,2980.4,3.21562282]
[1763587911499,3.2078,2980.5,2979.5,3.2078]
[1763587911701,3.2078,2980.4,2979.5,3.2078]
[1763587912404,3.2078,2980.7,2979.5,3.2078]
[1763587912598,3.2078,2980.4,2979.8,0.0050388]
[1763587912799,3.2078,2980.5,2979.8,3.2128388]
[1763587913198,3.21701886,2980.9,2980.4,3.2078]
[1763587913401,0.00921886,2980.9,2980.4,3.2078]
[1763587913798,0.00921886,2980.9,2980.7,3.2078]
[1763587915003,3.2078,2981.6,2980.7,3.7519]
[1763587915202,3.2078,2981.6,2981.0,3.2078]
[1763587915596,3.2078,2982.3,2981.4,3.2078]
[1763587915799,3.2078,2982.0,2981.1,3.2078]
[1763587916002,0.00503018,2981.8,2981.3,0.00503018]
[1763587916502,3.2078,2981.4,2981.3,0.00503018]
[1763587916711,3.2078,2981.7,2981.3,0.00503018]
[1763587917303,0.00503018,2981.8,2981.3,0.00503018]
[1763587919609,1.5028,2981.6,2981.3,0.00503018]
[1763587919916,3.2078,2981.5,2981.3,0.00503018]
[1763587920115,3.2078,2981.5,2980.7,3.2078]
[1763587920808,0.00503018,2981.8,2981.0,3.2078]
[1763587921004,0.00503018,2981.8,2981.5,3.2078]
[1763587921209,3.2078,2982.8,2981.6,14.539]
[1763587921412,3.2078,2983.6,2982.7,3.2078]
[1763587921716,3.2078,2982.8,2982.2,3.631]
[1763587921912,3.2078,2982.7,2982.2,3.631]
[1763587922212,3.2078,2982.3,2981.1,3.2078]
[1763587922409,3.2078,2981.2,2980.2,3.2078]
[1763587922803,3.2078,2980.7,2979.9,15.3828]
[1763587923003,3.2078,2981.0,2979.9,15.3828]
[1763587923216,0.00503018,2980.7,2980.2,3.21283018]
[1763587923418,0.00503018,2980.7,2980.6,3.2078]
[1763587923610,3.2078,2981.7,2980.6,3.2078]
[1763587923806,3.2078,2982.1,2981.2,3.2078]
[1763587924012,4.6882,2982.4,2981.2,6.8378]
[1763587924317,3.2078,2982.1,2981.2,6.8378]
[1763587924511,3.2078,2982.1,2981.2,3.2078]
[1763587924720,3.2078,2981.5,2980.2,3.21283018]
[1763587924918,3.2078,2981.5,2980.5,3.2078]
[1763587925419,0.00503018,2981.9,2980.8,3.2078]
[1763587925608,0.00503018,2981.9,2981.1,3.2078]
[1763587925807,0.00503018,2981.9,2981.4,3.2078]
[1763587926119,0.00503018,2981.9,2981.7,3.2078]
[1763587926710,0.00309026,2982.7,2981.8,10.40991362]
[1763587926907,0.00309026,2982.7,2982.4,3.2078]
[1763587927120,0.00309026,2982.7,2982.4,3.21141199]
[1763587927417,3.2078,2982.5,2982.4,0.00361199]
[1763587927622,3.2078,2982.6,2982.4,0.00361199]
[1763587928112,0.00812044,2982.7,2982.4,0.00361199]
[1763587928516,3.2078,2983.7,2982.7,0.54373]
[1763587928720,4.7106,2984.0,2983.0,3.2078]
[1763587928920,5.13669093,2985.6,2982.8,0.54372]
[1763587928921,3.2078,2984.3,2983.6,3.2078]
[1763587929219,3.2078,2984.0,2983.6,3.626]
[1763587929421,3.2078,2984.3,2983.6,3.626]
[1763587929616,0.0026769,2984.0,2983.7,0.00503018]
[1763587930719,0.0026769,2984.0,2983.7,3.21283018]
[1763587931521,0.0026769,2984.0,2983.7,0.00503018]
[1763587932121,0.00503018,2984.2,2983.9,3.2078]
[1763587932522,0.00503018,2984.2,2984.0,0.5435]
[1763587932919,0.00503018,2984.2,2984.0,3.623]
[1763587933119,0.00929779,2984.2,2984.0,3.623]
[1763587933418,3.2078,2984.6,2984.0,4.7349]
[1763587933618,3.2078,2985.0,2984.3,3.2078]
[1763587933820,3.2078,2984.4,2983.8,3.2078]
[1763587934013,3.2078,2984.3,2983.7,0.00503018]
[1763587934323,3.21568946,2984.3,2983.7,0.00503018]
[1763587935018,4.6882,2984.0,2983.7,0.00503018]
[1763587935623,1.4804,2984.0,2983.7,0.00503018]
[1763587935922,3.2078,2983.8,2983.7,0.00503018]
[1763587936426,3.21568946,2984.3,2983.7,0.00503018]
[1763587938024,1.4804,2984.0,2983.7,0.00503018]
[1763587938224,1.4804,2984.0,2982.6,3.2078]
[1763587938225,3.2078,2983.8,2982.6,3.2078]
[1763587938524,3.2078,2982.9,2982.4,0.00361199]
[1763587939024,3.2078,2982.6,2981.3,3.2078]
[1763587939231,3.2078,2981.9,2981.7,0.00503018]
[1763587939429,3.21283018,2982.2,2981.7,0.00503018]
[1763587939629,0.00503018,2982.2,2981.7,0.00503018]
[1763587940021,0.00804396,2982.2,2981.7,0.00920962]
[1763587940226,0.00804396,2982.2,2981.7,3.21700962]
[1763587940430,3.2078,2983.2,2982.0,3.2078]
[1763587940736,3.2078,2983.2,2982.5,3.2078]
[1763587940922,4.6882,2983.2,2982.5,3.2078]
[1763587941124,3.2078,2983.2,2982.5,3.2078]
[1763587941325,0.00503018,2983.1,2982.5,3.2078]
[1763587942131,3.2078,2984.3,2983.6,0.54357]
[1763587942432,3.2078,2984.6,2984.1,3.2078]
[1763587942636,3.2078,2984.6,2983.8,3.2078]
[1763587942830,3.2078,2984.9,2984.1,3.2078]
[1763587943027,3.2078,2985.3,2984.7,3.75117]
[1763587943331,3.2078,2985.7,2984.8,4.31964268]
[1763587943827,3.2078,2986.3,2985.3,0.54327]
[1763587944022,3.2078,2986.3,2985.5,3.2078]
[1763587944218,3.21214338,2986.3,2985.5,3.2078]
[1763587944432,3.2078,2986.0,2985.2,6.8248]
[1763587944830,3.2078,2986.0,2985.2,3.2078]
[1763587945027,3.2078,2986.0,2985.0,3.03861307]
[1763587945226,3.2078,2985.8,2984.9,3.616]
[1763587945428,3.2078,2986.1,2985.4,3.2078]
[1763587946033,0.00434338,2986.3,2985.8,3.2078]
[1763587946229,0.00434338,2986.3,2985.8,3.21283018]
[1763587946436,0.00434338,2986.3,2985.8,0.00503018]
[1763587946832,0.00434338,2986.3,2986.2,3.2078]
[1763587947133,1.4804,2987.2,2986.2,3.21184538]
[1763587947332,3.2078,2986.6,2986.2,0.00404538]
[1763587947527,3.2078,2986.3,2985.8,0.00503018]
[1763587947733,3.2078,2986.3,2985.3,3.2078]
[1763587947932,1.2923,2986.4,2985.7,3.2078]
[1763587948131,3.2078,2986.3,2985.7,3.2078]
[1763587948439,3.2078,2986.2,2985.7,0.00259275]
[1763587948633,0.00398909,2986.3,2985.7,3.21039275]
[1763587948833,0.00503018,2986.2,2985.7,3.21542293]
[1763587949031,0.00503018,2986.2,2986.0,3.2078]
[1763587949228,0.00503018,2986.2,2986.0,6.24641307]
[1763587949741,1.4804,2987.2,2986.1,0.54312]
[1763587949943,1.4804,2987.2,2986.5,3.2078]
[1763587950738,1.48441494,2987.2,2986.5,3.2078]
[1763587951133,0.00401494,2987.2,2986.5,3.2078]
[1763587952046,0.00401494,2987.2,2986.8,3.2078]
[1763587952435,1.4804,2988.8,2987.1,3.2078]
[1763587952436,4.6882,2988.0,2987.1,3.2078]
[1763587952636,4.6882,2988.0,2987.3,0.00502167]
[1763587953039,3.2078,2987.7,2987.3,0.00502167]
[1763587953346,3.21144018,2987.7,2987.3,0.00502167]
[1763587953937,0.00364018,2987.7,2987.5,3.2078]
[1763587954134,0.00364018,2987.7,2987.5,6.24641307]
[1763587954547,3.2078,2988.7,2987.5,6.24641307]
[1763587954753,3.2078,2988.6,2987.9,3.2078]
[1763587954944,1.4804,2988.8,2987.9,3.2078]
[1763587955449,3.2078,2988.7,2987.9,3.21096884]
[1763587955839,3.2078,2988.1,2987.9,0.00316884]
[1763587956045,3.2078,2988.5,2987.9,0.00316884]
[1763587956552,3.2078,2988.5,2988.0,3.03861307]
[1763587956752,3.2078,2988.5,2987.9,0.00316884]
[1763587956958,3.2078,2988.6,2987.9,0.00316884]
[1763587957344,3.2078,2988.7,2987.9,0.00316884]
[1763587957549,3.2078,2988.3,2987.9,0.00316884]
[1763587957750,0.00421137,2988.8,2988.2,3.2078]
[1763587957956,0.00421137,2988.8,2988.5,3.2078]
[1763587958550,0.00421137,2988.8,2988.5,6.24641307]
[1763587958748,4.5001,2990.4,2988.5,6.24641307]
[1763587958961,3.2078,2990.0,2989.3,3.2078]
[1763587959255,4.5341,2989.6,2989.2,0.00502167]
[1763587959551,3.2078,2989.6,2989.2,0.00502167]
[1763587959756,0.00416216,2989.6,2989.2,0.00502167]
[1763587959952,0.00416216,2989.6,2989.3,3.2078]
[1763587961451,3.2078,2990.3,2989.4,4.82444986]
[1763587961655,1.2923,2990.4,2989.8,3.2078]
[1763587962255,3.2078,2990.7,2989.9,4.28193986]
[1763587962457,3.21113667,2990.7,2989.8,3.2078]
[1763587962656,0.00333667,2990.7,2989.8,3.2078]
[1763587962959,0.00333667,2990.7,2990.1,3.2078]
[1763587963258,0.00333667,2990.7,2990.1,3.21043588]
[1763587963453,0.00333667,2990.7,2990.5,3.2078]
[1763587964560,3.2078,2991.7,2990.6,3.03861307]
[1763587964759,3.2078,2991.7,2990.9,0.00502167]
[1763587965261,4.5341,2991.2,2990.9,0.00502167]
[1763587965454,1.3263,2991.2,2990.9,0.00502167]
[1763587965654,0.00367706,2991.2,2990.9,0.00502167]
[1763587968263,3.2078,2992.6,2991.2,0.8347]
[1763587968554,3.2078,2991.7,2991.0,3.2078]
[1763587968754,3.2078,2991.4,2990.9,0.00502167]
[1763587968950,3.2078,2991.0,2990.1,3.21043588]
[1763587969161,4.5341,2990.4,2990.1,0.00263588]
[1763587969365,0.00302117,2990.4,2990.1,0.00263588]
[1763587970163,4.5341,2992.0,2990.4,1.65054]
[1763587970460,1.3263,2990.4,2990.1,0.00263588]
[1763587970657,3.2078,2990.3,2989.0,3.2078]
[1763587970856,3.2078,2990.0,2989.3,3.2078]
[1763587971561,3.2078,2990.0,2989.4,0.00502167]
[1763587971562,0.00502167,2989.9,2989.4,0.00502167]
[1763587971760,0.00502167,2989.9,2989.6,3.2078]
[1763587974058,1.3263,2989.6,2989.4,0.00502167]
[1763587974262,1.3263,2989.6,2989.3,0.00395751]
[1763587974664,4.5341,2989.6,2989.3,0.00395751]
[1763587974864,3.2078,2989.4,2989.3,0.00395751]
[1763587975063,1.3263,2989.6,2988.7,3.2078]
[1763587975359,1.3263,2989.6,2988.9,0.00502167]
[1763587975560,1.3263,2989.6,2989.0,3.2078]
[1763587975958,1.3263,2989.6,2988.9,0.00502167]
[1763587976163,1.3263,2989.6,2988.9,0.00872095]
[1763587976762,1.3263,2989.6,2989.1,3.2078]
[1763587977866,1.3263,2989.6,2988.9,0.00872095]
[1763587977867,3.2078,2989.5,2988.9,0.00872095]
[1763587978460,3.21282167,2989.9,2989.2,3.2078]
[1763587979156,0.00502167,2989.9,2989.8,3.2078]
[1763587979366,3.2078,2992.1,2989.8,9.2078]
[1763587979562,3.2078,2992.6,2991.0,3.2078]
[1763587979871,4.5341,2992.8,2991.7,3.2078]
[1763587980060,1.3263,2992.8,2991.7,3.2078]
[1763587980255,0.00499655,2992.5,2992.0,0.00501295]
[1763587980466,1.3263,2992.0,2991.7,0.003611]
[1763587980665,0.00499655,2992.5,2991.7,3.211411]
[1763587980970,3.21279655,2992.5,2991.7,3.211411]
[1763587981164,1.3263,2992.0,2991.7,0.003611]
[1763587981765,0.00499655,2992.5,2991.7,3.211411]
[1763587981967,0.00499655,2992.5,2992.3,3.2078]
[1763587982565,0.00264429,2992.8,2992.3,3.2078]
[1763587982874,1.3263,2994.4,2992.7,3.2078]
[1763587983067,3.2078,2994.1,2993.3,3.2078]
[1763587983567,0.00501295,2994.0,2993.7,3.2078]
[1763587984069,0.00501295,2994.0,2993.4,0.00501295]
[1763587984070,0.00501295,2994.0,2993.4,3.21281295]
[1763587984277,0.00501295,2994.0,2993.9,3.2078]
[1763587984469,0.00501295,2994.0,2993.9,0.00401108]
[1763587984669,9.21281295,2994.0,2992.7,3.2078]
[1763587984971,9.21281295,2994.0,2988.0,0.7396]
[1763587984972,1.1538,2992.5,2991.3,3.2078]
[1763587985273,1.1538,2992.5,2990.9,3.2078]
[1763587985274,1.1538,2991.6,2990.9,3.2078]
[1763587985582,1.15768684,2991.6,2990.9,3.21183448]
[1763587985963,0.00501295,2991.5,2991.0,0.00501295]
[1763587986265,3.2078,2991.4,2990.9,0.00403448]
[1763587986466,3.2078,2991.1,2990.9,0.00403448]
[1763587986768,0.00501295,2991.5,2990.9,6.25044755]
[1763587987075,0.00501295,2991.5,2990.9,3.21183448]
[1763587987367,0.00501295,2991.5,2990.9,0.00904743]
[1763587987572,0.00501295,2991.5,2990.9,3.21684743]
[1763587987874,3.2078,2991.0,2990.9,0.00904743]
[1763587988069,0.00501295,2991.5,2990.9,0.00904743]
[1763587988274,0.00501295,2991.5,2990.9,6.2554605]
[1763587988972,0.00501295,2991.5,2990.9,3.21684743]
[1763587989374,0.00501295,2991.5,2991.4,3.2078]
[1763587989675,0.00501295,2991.5,2991.1,3.2078]
[1763587990066,3.21281295,2991.5,2990.9,0.00904743]
[1763587990469,0.00501295,2991.5,2991.1,3.2078]
[1763587990663,0.00501295,2991.5,2990.9,0.00904743]
[1763587990867,0.00501295,2991.5,2991.4,3.2078]
[1763587991070,3.2078,2992.6,2991.4,9.2078]
[1763587991263,1.1538,2992.5,2991.5,3.2078]
[1763587991466,3.2078,2992.1,2991.5,3.2078]
[1763587991665,3.2078,2992.1,2990.9,3.59204743]
[1763587991666,3.2078,2991.7,2991.0,3.2078]
[1763587991866,3.2078,2991.3,2990.9,0.00904743]
[1763587992270,3.2078,2991.0,2990.9,0.00904743]
[1763587992473,3.2078,2991.0,2990.9,4.743e-05]
[1763587993170,0.00501295,2991.4,2990.9,4.743e-05]
[1763587993372,3.2078,2991.0,2990.9,0.00420122]
[1763587994175,3.21671463,2991.4,2990.9,0.00420122]
[1763587994374,3.2078,2991.0,2990.9,0.00420122]
[1763587994575,3.2078,2991.0,2990.3,3.2078]
[1763587994772,3.2078,2991.3,2990.3,3.2078]
[1763587995367,3.2078,2990.4,2989.6,3.2078]
[1763587995568,1.1538,2989.8,2989.7,0.00501295]
[1763587995769,3.2078,2990.2,2989.7,0.00501295]
[1763587995975,3.2078,2990.6,2989.7,0.00501295]
[1763587996180,3.2078,2990.3,2989.7,0.00501295]
[1763587996779,1.1538,2989.8,2989.7,0.00501295]
[1763587996978,4.3616,2989.8,2988.8,3.2078]
[1763587997173,3.2078,2989.5,2988.8,3.2078]
[1763587997478,3.2078,2989.5,2988.4,0.5427]
[1763587997479,1.1538,2989.8,2989.1,3.2078]
[1763587997880,0.00501295,2989.7,2989.6,0.54249]
[1763587998074,1.1538,2990.7,2989.9,0.54243]
[1763587998270,3.2078,2991.1,2990.5,0.54232]
[1763587998474,4.3616,2991.6,2990.8,3.2078]
[1763587999082,0.00891463,2991.4,2990.8,3.21281295]
[1763587999384,0.00891463,2991.4,2990.9,3.2078]
[1763587999577,3.2078,2991.3,2990.8,0.00501295]
[1763588000082,0.00891463,2991.4,2990.8,0.00501295]
[1763588000280,3.21671463,2991.4,2990.8,0.00501295]
[1763588001081,3.2078,2991.0,2990.8,0.00501295]
[1763588001273,3.2078,2991.3,2990.8,0.00501295]
[1763588001681,0.00891463,2991.4,2990.8,0.00501295]
[1763588001880,0.00891463,2991.4,2991.1,3.2078]
[1763588002271,0.00891463,2991.4,2990.8,0.00501295]
[1763588002678,3.2078,2991.3,2990.8,0.00501295]
[1763588002881,3.2078,2990.9,2990.8,0.00501295]
[1763588003073,3.2078,2991.2,2990.8,0.00501295]
[1763588003275,0.00891463,2991.4,2990.8,0.00501295]
[1763588003480,3.2078,2991.0,2990.8,0.00501295]
[1763588005379,3.2078,2991.0,2990.8,1.295e-05]
[1763588005578,3.2078,2991.0,2989.9,3.2078]
[1763588005780,3.2078,2991.0,2990.4,0.54233]
[1763588006080,3.2078,2991.0,2990.2,3.2078]
[1763588006578,3.2078,2991.0,2990.3,0.00501295]
[1763588006885,0.00891463,2991.4,2990.7,3.75008]
[1763588007083,0.00891463,2991.4,2991.0,3.2078]
[1763588007383,0.00891463,2991.4,2991.3,3.2078]
[1763588007576,0.00891463,2991.4,2991.3,0.00318201]
[1763588008378,0.00891463,2991.4,2991.3,9.21098201]
[1763588008576,1.1538,2993.4,2991.5,0.54213]
[1763588008886,3.2078,2992.8,2992.0,3.2078]
[1763588009278,1.1538,2993.4,2991.6,4.16889053]
[1763588009279,3.2078,2993.3,2992.3,3.2078]
[1763588009589,0.00501295,2993.1,2992.5,0.00501295]
[1763588009786,0.00501295,2993.1,2992.6,3.2078]
[1763588009982,0.00501295,2993.1,2992.9,3.2078]
[1763588010182,3.2078,2994.0,2992.9,3.2078]
[1763588010380,3.2078,2994.0,2993.3,3.2078]
[1763588010688,4.3616,2994.3,2993.3,3.2078]
[1763588010878,1.1538,2994.3,2993.6,3.2078]
[1763588011083,3.2078,2994.6,2993.9,3.2078]
[1763588011281,0.00501295,2994.5,2994.2,3.2078]
[1763588016978,0.00501295,2994.5,2994.1,0.00501295]
[1763588017482,0.00501295,2994.5,2994.1,3.63178348]
[1763588017687,0.00501295,2994.5,2994.3,3.2078]
[1763588019184,0.00501295,2994.5,2994.1,0.00501295]
[1763588019386,3.21281295,2994.5,2994.1,0.00501295]
[1763588020291,0.00501295,2994.5,2994.3,3.2078]
[1763588020688,0.00501295,2994.5,2994.1,0.00501295]
[1763588020986,0.00501295,2994.5,2994.3,3.2078]
[1763588023488,0.00287675,2994.6,2994.3,3.2078]
[1763588023489,3.2078,2995.4,2994.5,0.5416]
[1763588023687,3.2078,2995.4,2994.8,3.2078]
[1763588024284,3.21600654,2995.4,2994.8,3.2078]
[1763588024590,3.2078,2994.9,2994.1,0.00501295]
[1763588025389,3.2078,2995.2,2994.4,3.74941]
[1763588025987,4.2401,2995.2,2994.4,3.2078]
[1763588026691,4.2401,2995.2,2994.1,3.21281295]
[1763588026986,3.2078,2994.9,2994.1,3.21281295]
[1763588027285,1.0323,2994.4,2994.1,0.00501295]
[1763588027488,3.2078,2995.2,2994.3,3.2078]
[1763588027689,4.2401,2995.2,2994.3,3.2078]
[1763588028291,0.00820654,2995.4,2994.6,3.2078]
[1763588029294,0.00820654,2995.4,2994.9,3.2078]
[1763588031093,0.00820654,2995.4,2994.9,3.74932]
[1763588031294,0.00820654,2995.4,2995.2,3.2078]
[1763588032790,0.00820654,2995.4,2994.8,3.2078]
[1763588035399,0.00820654,2995.4,2994.8,3.74934]
[1763588035695,0.00820654,2995.4,2994.9,3.2078]
[1763588037795,3.2078,2996.2,2995.5,0.54141]
[1763588037996,3.2078,2996.2,2995.5,3.2078]
[1763588038591,3.2078,2996.6,2995.5,3.2078]
[1763588038794,1.0323,2996.0,2995.8,0.00501295]
[1763588038996,3.2078,2995.9,2995.8,0.00501295]
[1763588039599,9.2078,2995.9,2994.8,3.2078]
[1763588039798,3.2078,2995.6,2994.8,3.2078]
[1763588040102,3.2078,2995.6,2995.5,1.13804426]
[1763588040290,3.2078,2996.2,2995.5,4.00574956]
[1763588040502,3.2078,2996.2,2996.1,1.13814273]
[1763588040696,3.2078,2996.2,2996.1,1.93859687]
[1763588040897,3.2078,2996.2,2996.1,0.80045414]
[1763588041199,3.2078,2996.2,2996.1,1.93884515]
[1763588041594,1.0323,2996.0,2995.9,0.85413053]
[1763588041796,1.0323,2996.0,2994.8,2.84511067]
[1763588042094,3.2078,2995.5,2994.9,3.62677053]
[1763588042295,3.2078,2995.7,2995.1,2.27628547]
[1763588042492,3.2078,2995.8,2995.1,2.27628547]
[1763588042689,3.21030458,2995.8,2995.2,0.00501295]
[1763588043300,3.2078,2995.5,2995.2,0.00501295]
[1763588046905,3.2078,2995.3,2995.2,0.00501295]
[1763588047403,3.2078,2995.3,2994.4,2.27628547]
[1763588047601,3.2078,2995.2,2994.3,5.48408547]
[1763588047800,3.2078,2994.9,2994.4,2.27628547]
[1763588048013,3.2078,2995.2,2994.4,2.27628547]
[1763588048392,3.2078,2995.2,2994.5,0.00501295]
[1763588048897,1.0248,2995.3,2994.5,0.00501295]
[1763588048898,3.2078,2994.7,2994.5,0.00501295]
[1763588049100,0.00501295,2994.9,2994.6,1.0365]
[1763588049307,0.00501295,2994.9,2994.6,4.2443]
[1763588049700,0.00501295,2994.9,2994.6,6.52058547]
[1763588050396,0.00501295,2994.9,2994.8,3.2078]
[1763588051709,0.00501295,2994.9,2994.5,2.28129842]
[1763588051903,0.00501295,2994.9,2994.5,0.00501295]
[1763588052404,0.5162,2994.6,2994.5,0.00501295]
[1763588052705,0.5162,2994.6,2994.5,1.295e-05]
[1763588053207,3.2078,2994.8,2994.5,1.295e-05]
[1763588054406,0.00501295,2994.9,2994.5,1.295e-05]
[1763588054607,0.00501295,2994.9,2994.6,1.0365]
[1763588054814,0.00501295,2994.9,2994.7,3.74935]
[1763588055104,0.00501295,2994.9,2994.7,9.57463547]
[1763588055305,0.00501295,2994.9,2994.7,9.03308547]
[1763588055504,0.00501295,2994.9,2994.8,3.2078]
[1763588055907,0.00501295,2994.9,2994.6,6.86078547]
[1763588056210,0.00501295,2994.9,2994.6,2.27628547]
[1763588056410,0.00501295,2994.9,2994.5,1.295e-05]
[1763588057209,3.2078,2994.7,2994.5,1.295e-05]
[1763588057610,1.0248,2994.6,2994.5,1.295e-05]
[1763588058710,3.2078,2994.7,2994.5,1.295e-05]
[1763588059603,0.00501295,2994.9,2994.5,1.295e-05]
[1763588059912,0.5039,2994.6,2994.5,1.295e-05]
[1763588060117,3.2078,2994.7,2994.5,1.295e-05]
[1763588062008,0.5039,2994.6,2994.5,1.295e-05]
[1763588062415,0.5039,2994.6,2993.2,2.7748432]
[1763588062617,3.2078,2993.8,2993.2,2.7748432]
[1763588063315,3.2078,2993.8,2993.2,1.0677]
[1763588063520,3.2078,2993.8,2993.2,5.99068399]
[1763588064121,3.2078,2993.8,2993.5,2.26226591]
[1763588064307,3.2078,2993.8,2993.2,1.04454079]
[1763588065415,3.2078,2993.4,2993.2,0.00804079]
[1763588065721,3.21150741,2993.4,2993.2,0.00804079]
[1763588066915,3.21150741,2993.4,2992.2,1.7071432]
[1763588067119,3.2078,2992.9,2992.2,1.7071432]
[1763588067314,3.2078,2992.6,2992.1,3.543]
[1763588068121,3.21281295,2992.6,2992.1,0.00872483]
[1763588068613,3.21281295,2992.6,2992.1,2.27099074]
[1763588069214,0.00501295,2992.6,2992.5,0.9234]
[1763588069421,0.00501295,2992.6,2992.3,3.543]
[1763588069718,3.21281295,2992.6,2992.1,0.00872483]
[1763588070222,3.2078,2992.2,2992.1,0.00872483]
[1763588071017,0.00501295,2992.6,2992.1,2.27099074]
[1763588071222,3.2078,2992.5,2992.1,0.00872483]
[1763588071823,3.2078,2992.4,2992.1,0.00872483]
[1763588072511,3.2078,2992.4,2991.4,3.2078]
[1763588072824,3.2078,2992.0,2991.4,3.2078]
[1763588073027,3.2078,2991.6,2991.1,4.2443]
[1763588073216,3.2078,2991.6,2991.0,3.541]
[1763588073520,3.2078,2991.6,2991.0,0.00585146]
[1763588073922,3.2078,2991.2,2991.0,0.00585146]
[1763588074118,3.21156528,2991.2,2991.0,0.00585146]
[1763588074523,0.6645,2991.1,2990.3,3.2078]
[1763588075026,3.2078,2991.0,2990.4,0.9139]
[1763588075228,0.00376528,2991.2,2990.7,3.2078]
[1763588075424,0.00376528,2991.2,2990.6,3.541]
[1763588075620,0.00877823,2991.2,2990.8,2.26226591]
[1763588075823,0.00877823,2991.2,2991.1,0.9139]
[1763588076427,0.00877823,2991.2,2990.6,3.54377318]
[1763588076724,3.2078,2991.0,2990.6,0.00377318]
[1763588078526,3.2078,2990.7,2990.6,0.00377318]